fUSD/lending_fUSD_20240929
["ID","MTS","AMOUNT","RATE_DAILY","PERIOD"]
[339496433,1727633432078,-1041.76047077,0.000109,2]
[339496434,1727633432089,-663.67270921,0.000109,2]
[339496435,1727633432104,-6132.83739313,0.000109,2]
[339496436,1727633432115,-1832.51177348,0.000109,2]
[339496437,1727633432125,-252.26322652,0.000109,2]
[339496439,1727633432137,-6236.81216735,0.000109,2]
[339496441,1727633432148,-1837.68576623,0.000109,2]
[339496444,1727633432167,-9953.30570806,0.000109,2]
[339496475,1727633437805,-1300.0,0.000109,2]
[339496476,1727633437818,-23923.33231431,0.000109,2]
[339496477,1727633437916,-45788.41810589,0.000109,2]
[339496478,1727633437928,-305.85,0.000109,2]
[339496480,1727633438114,-498.4769476,0.000109,2]
[339496482,1727633438126,-9464.00646404,0.000109,2]
[339496484,1727633438135,-14718.93393626,0.000109,2]
[339496486,1727633438146,-603.40075602,0.000109,2]
[339496488,1727633438157,-19489.86899283,0.000109,2]
[339496490,1727633438167,-1743.73802936,0.000109,2]
[339496492,1727633438176,-2882.78,0.000109,2]
[339496494,1727633438186,-150.99,0.000109,2]
[339496496,1727633438195,-813.76157149,0.000109,3]
[339496544,1727633439772,-200.0,0.00010053,2]
[339496545,1727633439782,-86.23842851,0.000109,3]
[339496546,1727633439792,-153.71437116,0.000109,2]
[339496547,1727633439802,-200.0,0.00010959,2]
[339496548,1727633439811,-499.99,0.00010959,2]
[339496549,1727633439821,-149.96297032,0.00010959,2]
[339496550,1727633439833,-100.03702968,0.00010959,2]
[339496551,1727633439842,-165.58,0.00010959,2]
[339496552,1727633439852,-13.87426922,0.00010973,2]
[339496553,1727633439863,-486.12573078,0.00010973,2]
[339496554,1727633439873,-501.97786434,0.00010973,2]
[339496555,1727633439882,-436.711,0.00010989,2]
[339496556,1727633439891,-187.099,0.00010989,2]
[339496557,1727633439901,-151.31,0.0001099,2]
[339496558,1727633439910,-151.31,0.0001099,2]
[339496559,1727633439919,-151.31,0.0001099,2]
[339496560,1727633439928,-151.31,0.0001099,2]
[339496561,1727633439937,-150.0,0.00010996,2]
[339496562,1727633439946,-2459.3582526,0.00010998,2]
[339496563,1727633439955,-8430.36547247,0.00010998,2]
[339496564,1727633439966,-7759.32294957,0.00010998,2]
[339496565,1727633439977,-1226.66149548,0.00010998,2]
[339496566,1727633439988,-1819.99999776,0.00010998,2]
[339496567,1727633440006,-315.3343428,0.00010998,2]
[339496568,1727633440016,-4764.59999999,0.00010998,2]
[339496569,1727633440029,-334.18860423,0.00010998,2]
[339496570,1727633440044,-16105.7463099,0.00010998,2]
[339496571,1727633440053,-2507.59961367,0.00010999,2]
[339496572,1727633440062,-500.0,0.00010999,2]
[339496573,1727633440071,-283.86365442,0.00010999,2]
[339496574,1727633440080,-500.0,0.00010999,2]
[339496575,1727633440089,-895.40919049,0.00010999,2]
[339496576,1727633440099,-150.0,0.00011,2]
[339496577,1727633440108,-168.843,0.00011,2]
[339496578,1727633440116,-150.803,0.00011,2]
[339496580,1727633440126,-150.0,0.00011,2]
[339496582,1727633440135,-1263.0,0.00011,2]
[339496584,1727633440144,-625.0,0.00011,2]
[339496585,1727633440154,-448.0,0.00011,2]
[339496587,1727633440163,-1296.0,0.00011,2]
[339496589,1727633440174,-554.0,0.00011,2]
[339496590,1727633440183,-1904.0,0.00011,2]
[339496591,1727633440193,-2819.116,0.00011,2]
[339496592,1727633440202,-1910.0,0.00011,2]
[339496593,1727633440212,-807.0,0.00011,2]
[339496594,1727633440221,-579434.70039704,0.00011,2]
[339496595,1727633440231,-9195.43462627,0.00011,5]
[339496596,1727633440240,-17679.12761276,0.00011,3]
[339496597,1727633440250,-5823788.36189923,0.00011,2]
[339496598,1727633440262,-324356.61485598,0.00011,2]
[339496599,1727633440274,-49755.18717018,0.00011,2]
[339496600,1727633440285,-228795.93175319,0.00011,2]
[339496601,1727633440297,-1730.32425122,0.00011,2]
[339496602,1727633440308,-5931.67455999,0.00011,2]
[339496603,1727633440320,-274.36554,0.00011,2]
[339496604,1727633440334,-10352.58655339,0.00011,2]
[339496605,1727633440349,-26562.30521915,0.00011,2]
[339496613,1727633442776,-827.37773051,0.00011,2]
[339496615,1727633442787,-471.52007595,0.00011,2]
[339496616,1727633442875,-15129.77004963,0.00011,2]
[339496617,1727633442887,-659.44059965,0.00011,2]
[339496618,1727633442900,-793.114995,0.00011,2]
[339496619,1727633442912,-392.857998,0.00011,2]
[339496621,1727633443146,-647.46735558,0.00011,2]
[339496624,1727633443181,-302.23,0.00011,2]
[339496626,1727633443193,-300.1,0.00011,2]
[339496628,1727633443204,-307.38558639,0.00011,2]
[339496630,1727633443215,-274.264,0.00011,2]
[339496632,1727633443227,-309.865,0.00011,2]
[339496634,1727633443238,-641.85958326,0.00011,2]
[339496636,1727633443250,-1045.14,0.00011,2]
[339496638,1727633443261,-10386.38,0.00011,2]
[339496639,1727633443272,-5203.47580105,0.00011,2]
[339496640,1727633443287,-734.39015081,0.00011,2]
[339496641,1727633443299,-416186.89247057,0.00011,2]
[339496642,1727633443311,-17645.626209,0.00011,2]
[339496643,1727633443322,-16586.96867989,0.00011,2]
[339496644,1727633443334,-16774.24069954,0.00011,2]
[339496645,1727633443345,-1181.93999887,0.00011,2]
[339496646,1727633443357,-2057.28,0.00011,2]
[339496647,1727633443369,-75021.74171723,0.00011,2]
[339496648,1727633443381,-370.61820372,0.00011,2]
[339496649,1727633443393,-536.28001313,0.00011,2]
[339496650,1727633443404,-30000.0,0.00011,2]
[339496651,1727633445694,-690.60504577,0.00011,2]
[339496652,1727633445706,-1408.82174182,0.00011,2]
[339496653,1727633445718,-1050.25519812,0.00011,2]
[339496654,1727633445731,-1710.75555846,0.00011,2]
[339496655,1727633445743,-926.66902096,0.00011,2]
[339496657,1727633445754,-3377.66964981,0.00011,2]
[339496661,1727633445804,-1195.57080635,0.00011,2]
[339496662,1727633445946,-837.1615839,0.00011,2]
[339496663,1727633445959,-270.462826,0.00011,2]
[339496664,1727633445970,-1748.9835148,0.00011,2]
[339496665,1727633445981,-291898.95939508,0.00011,2]
[339496666,1727633445992,-2192.36880359,0.00011,2]
[339496667,1727633446003,-4506.06258621,0.00011,2]
[339496668,1727633446015,-16487.5,0.00011,2]
[339496670,1727633446028,-1073.61091901,0.00011,2]
[339496672,1727633446039,-2635.15652636,0.00011,2]
[339496674,1727633446051,-1973.77783105,0.00011,2]
[339496676,1727633446062,-4203.54536531,0.00011,2]
[339496678,1727633446074,-12304.9185501,0.00011,2]
[339496680,1727633446085,-2143.62891661,0.00011,2]
[339496682,1727633446097,-5000.0,0.00011,2]
[339496684,1727633446108,-3827.9912898,0.00011,2]
[339496686,1727633446120,-398.604,0.00011,2]
[339496688,1727633446131,-1141.6,0.00011,2]
[339496690,1727633446142,-8623.99628399,0.00011,2]
[339496692,1727633446153,-2189.5392959,0.00011,2]
[339496694,1727633446164,-2417.41677453,0.00011,2]
[339496696,1727633446175,-60328.5851955,0.00011,2]
[339496698,1727633446186,-305.0,0.00011,2]
[339496699,1727633446196,-4069.54820653,0.00011,2]
[339496700,1727633446207,-27251.56505007,0.00011,2]
[339496701,1727633446218,-4427.48361733,0.00011,2]
[339496702,1727633446229,-6646.89595268,0.00011,2]
[339496703,1727633446240,-1221.72,0.00011,2]
[339496704,1727633446251,-456.80005735,0.00011,2]
[339496705,1727633446262,-447.7439158,0.00011,2]
[339496706,1727633446273,-432.87434618,0.00011,2]
[339496707,1727633446288,-33151.82099365,0.00011,2]
[339496708,1727633446300,-791.1403499,0.00011,2]
[339496709,1727633446311,-606.13570382,0.00011,2]
[339496710,1727633446322,-1138.28203649,0.00011,2]
[339496711,1727633805524,304.91,8.219e-05,2]
[339496712,1727633875457,1050.0,0.0001,2]
[339496714,1727633884261,250.0,9.997e-05,2]
[339496715,1727633994214,840.0,0.0001,2]
[339496716,1727634009318,187.74,0.0001,2]
[339496717,1727634137089,479.98,9.977e-05,2]
[339496718,1727634302696,150.0,9.888e-05,2]
[339496719,1727634303176,150.0,9.952e-05,2]
[339496720,1727634311292,150.0,9.888e-05,2]
[339496721,1727634311396,150.0,9.998e-05,2]
[339496722,1727634316374,150.43646473,9.888e-05,2]
[339496723,1727634321590,150.0,9.888e-05,2]
[339496724,1727634322037,150.0,9.945e-05,2]
[339496725,1727634329931,150.0,9.888e-05,2]
[339496726,1727634333963,150.0,9.888e-05,2]
[339496727,1727634336179,150.0,9.888e-05,2]
[339496728,1727634338327,150.0,9.888e-05,2]
[339496729,1727634340914,1985.25,0.00015,30]
[339496730,1727634340966,150.0,9.888e-05,2]
[339496731,1727634347509,150.0,9.888e-05,2]
[339496732,1727634349823,313.98,8.219e-05,2]
[339496733,1727634353058,150.43267399,9.888e-05,2]
[339496734,1727634354961,150.0,9.888e-05,2]
[339496735,1727634362084,15140.98996412,9.342e-05,2]
[339496736,1727634362114,1434.01003588,9.342e-05,2]
[339496737,1727634378255,31358.83,9.433e-05,2]
[339496739,1727634429271,174.89,9.411e-05,2]
[339496740,1727634446711,182.5995416,9.917e-05,2]
[339496741,1727634463151,250.0,9.429e-05,2]
[339496751,1727634527817,200.0,9.408e-05,2]
[339496765,1727634584758,500.0,9.428e-05,2]
[339496781,1727634631923,-150.0,0.00010003,2]
[339496783,1727634631933,-162.4205569,0.00010005,2]
[339496785,1727634631945,-306.6994431,0.00010005,2]
[339496788,1727634631954,-150.0,0.00010017,2]
[339496791,1727634631963,-1429.15658707,0.00010019,2]
[339496794,1727634631973,-150.0,0.00010061,2]
[339496795,1727634631982,-150.0,0.00010082,2]
[339496796,1727634631991,-372.8196,0.0001009,2]
[339496797,1727634632001,-150.0,0.00010107,2]
[339496798,1727634632011,-150.0,0.00010119,2]
[339496799,1727634632020,-499.99,0.00010119,2]
[339496800,1727634632030,-299.99,0.00010119,2]
[339496801,1727634632039,-150.0,0.00010146,2]
[339496802,1727634632049,-150.0,0.00010177,2]
[339496803,1727634632058,-150.0,0.00010211,2]
[339496804,1727634632067,-150.0,0.00010217,2]
[339496805,1727634632076,-103.05564143,0.00010235,2]
[339496806,1727634632087,-46.94435857,0.00010235,2]
[339496807,1727634632096,-150.0,0.00010275,2]
[339496808,1727634632106,-150.0,0.00010292,2]
[339496809,1727634632115,-150.0,0.00010327,2]
[339496810,1727634632124,-150.0,0.0001034,2]
[339496811,1727634632133,-150.0,0.0001035,2]
[339496812,1727634632142,-149.77309932,0.00010405,2]
[339496813,1727634632153,-0.22690068,0.00010405,2]
[339496814,1727634632163,-150.0,0.00010408,2]
[339496815,1727634632172,-150.0,0.00010437,2]
[339496816,1727634632181,-150.0,0.00010437,2]
[339496817,1727634632190,-150.0,0.00010437,2]
[339496818,1727634632201,-150.0,0.00010437,2]
[339496819,1727634632210,-313.98,0.00010441,2]
[339496820,1727634632219,-1723.15104689,0.0001045,2]
[339496822,1727634632230,-1990.74988686,0.0001045,2]
[339496824,1727634632240,-9.25011314,0.0001045,2]
[339496826,1727634632251,-140.74988686,0.0001045,2]
[339496828,1727634632264,-150.0,0.00010466,2]
[339496830,1727634632273,-150.0,0.00010469,2]
[339496832,1727634632281,-19.44663551,0.00010499,2]
[339496834,1727634632292,-980.55336449,0.00010499,2]
[339496836,1727634632303,-5728.33169899,0.000105,7]
[339496838,1727634632317,-271.96394405,0.000105,7]
[339496839,1727634632333,-263.73,0.000105,7]
[339496840,1727634632343,-806.59811442,0.000105,7]
[339496842,1727634632354,-889.15149544,0.000105,7]
[339496845,1727634632372,-250.0,0.000105,7]
[339496848,1727634632383,-752.76793986,0.000105,7]
[339496850,1727634632394,-432.000004,0.000105,7]
[339496852,1727634632404,-4277.03584135,0.000105,7]
[339496854,1727634632415,-805.70752806,0.000105,7]
[339496856,1727634632427,-473.05639867,0.000105,7]
[339496858,1727634632437,-1356.584543,0.000105,7]
[339496860,1727634632448,-846.08694448,0.000105,7]
[339496862,1727634632459,-702.93574009,0.000105,7]
[339496864,1727634632470,-4118.27119374,0.000105,7]
[339496866,1727634632482,-12177.92299829,0.000105,7]
[339496869,1727634632493,-299.6900001,0.000105,7]
[339496872,1727634632520,-6190.43932981,0.000105,7]
[339496874,1727634632530,-1452.0,0.000105,7]
[339496876,1727634632541,-1947.2218158,0.000105,7]
[339496878,1727634632551,-2807.56799259,0.000105,7]
[339496879,1727634632562,-3106.15268631,0.000105,7]
[339496880,1727634632573,-670.05965265,0.000105,7]
[339496881,1727634632584,-7103.03995499,0.000105,7]
[339496882,1727634632598,-335.08950845,0.000105,7]
[339496883,1727634632611,-276.52,0.000105,7]
[339496884,1727634632622,-2034.3771887,0.000105,7]
[339496885,1727634632634,-110618.94129016,0.000105,7]
[339496886,1727634632643,-300.0,0.000105,2]
[339496887,1727634632652,-327.82,0.00010509,2]
[339496888,1727634632661,-150.0,0.00010524,2]
[339496889,1727634632671,-150.0,0.00010534,2]
[339496890,1727634632680,-150.0,0.00010547,2]
[339496891,1727634632689,-150.0,0.00010582,2]
[339496892,1727634632698,-150.0,0.00010599,2]
[339496893,1727634632708,-190.260463,0.0001063,2]
[339496894,1727634632717,-150.0,0.00010639,2]
[339496895,1727634632726,-150.0,0.00010657,2]
[339496896,1727634632735,-150.0,0.00010663,2]
[339496897,1727634632744,-150.0,0.00010697,2]
[339496898,1727634632753,-754.03,0.000107,2]
[339496899,1727634632762,-754.03,0.000107,2]
[339496900,1727634632772,-1463.0877,0.000107,2]
[339496901,1727634632781,-754.03,0.000107,2]
[339496902,1727634632791,-864.11,0.000107,2]
[339496903,1727634632800,-214.4686,0.000107,2]
[339496904,1727634632809,-23036.8673,0.000107,2]
[339496905,1727634632818,-150.0,0.00010728,2]
[339496906,1727634632827,-372.40673539,0.00010734,2]
[339496907,1727634632836,-150.0,0.00010755,2]
[339496908,1727634632846,-150.0,0.00010767,2]
[339496909,1727634632855,-150.0,0.00010792,2]
[339496910,1727634632864,-229485.9116,0.000108,2]
[339496911,1727634632874,-20805.4463,0.000108,2]
[339496912,1727634632883,-754.03,0.000108,2]
[339496913,1727634632892,-754.03,0.000108,2]
[339496914,1727634632902,-150.0,0.00010813,2]
[339496915,1727634632911,-150.0,0.00010857,2]
[339496916,1727634632920,-153.7,0.0001087,2]
[339496917,1727634632930,-159.39020911,0.0001087,2]
[339496918,1727634632939,-150.0,0.00010871,2]
[339496919,1727634632949,-150.0,0.00010876,2]
[339496920,1727634632959,-44013.21727133,0.0001088,2]
[339496921,1727634632972,-290.16336359,0.0001088,2]
[339496922,1727634632984,-4207.88817068,0.0001088,2]
[339496923,1727634632996,-928.03605595,0.0001088,2]
[339496924,1727634633008,-17867.20581644,0.0001088,2]
[339496925,1727634633027,-382.31751455,0.0001088,2]
[339496926,1727634633039,-401.44091038,0.0001088,2]
[339496927,1727634633050,-1601.38575,0.0001088,2]
[339496928,1727634633061,-16570.37783984,0.0001088,2]
[339496929,1727634633075,-389.84087267,0.0001088,2]
[339496930,1727634633097,-1336.34521765,0.0001088,2]
[339496934,1727634638025,-2702.756445,0.0001088,2]
[339496935,1727634638037,-5600.74336425,0.0001088,2]
[339496936,1727634638048,-1938.5185886,0.0001088,2]
[339496937,1727634638063,-551.69056611,0.0001088,2]
[339496938,1727634638075,-13200.0,0.0001088,2]
[339496939,1727634638402,-80264.27018146,0.0001088,2]
[339496940,1727634638414,-63491.59336379,0.0001088,2]
[339496941,1727634638432,-324718.03314575,0.0001088,2]
[339496942,1727634638442,-150.23271,0.0001089,2]
[339496943,1727634638451,-311.27857499,0.00010896,2]
[339496944,1727634638460,-1966.3441,0.000109,2]
[339496945,1727634638469,-51220.0,0.000109,2]
[339496946,1727634638478,-675.08078775,0.000109,2]
[339496947,1727634638487,-415.23930122,0.000109,2]
[339496948,1727634638496,-966.25248526,0.000109,2]
[339496949,1727634638505,-713.14214736,0.000109,2]
[339496950,1727634638515,-2222.64829833,0.000109,2]
[339496951,1727634638524,-150.0,0.00010922,2]
[339496952,1727634638533,-150.0,0.00010928,2]
[339496953,1727634638542,-20000.0,0.00010929,2]
[339496954,1727634638551,-500.0,0.00010958,2]
[339496955,1727634638561,-169.0686501,0.00010958,2]
[339496956,1727634638570,-500.0,0.00010958,2]
[339496957,1727634638579,-500.0,0.00010958,2]
[339496958,1727634638589,-507.5676078,0.00010958,2]
[339496959,1727634638598,-500.0,0.00010958,2]
[339496961,1727634638607,-500.0,0.00010958,2]
[339496963,1727634638616,-500.0,0.00010958,2]
[339496965,1727634638626,-500.0,0.00010958,2]
[339496967,1727634638635,-500.0,0.00010958,2]
[339496969,1727634638644,-275.38363269,0.00010958,2]
[339496971,1727634638653,-500.0,0.00010958,2]
[339496973,1727634638662,-500.0,0.00010958,2]
[339496975,1727634638671,-200.0,0.00010959,2]
[339496977,1727634638680,-159.8,0.00010959,2]
[339496979,1727634638689,-250.0,0.00010959,2]
[339496981,1727634638698,-240.26,0.00010959,2]
[339496983,1727634638707,-200.22,0.00010959,2]
[339496985,1727634638716,-166.85,0.00010959,2]
[339496987,1727634638725,-834.27,0.00010959,2]
[339496989,1727634638734,-178.92529619,0.0001096,2]
[339496990,1727634638743,-500.0,0.00010973,2]
[339496991,1727634638751,-500.0,0.00010973,2]
[339496992,1727634638760,-150.0,0.00010986,2]
[339496993,1727634638769,-150.0,0.00010986,2]
[339496994,1727634638778,-150.0,0.00010986,2]
[339496995,1727634638787,-150.0,0.00010986,2]
[339496996,1727634638796,-150.44979897,0.00010986,2]
[339496997,1727634638805,-266.55057305,0.00010986,2]
[339496998,1727634638814,-150.8707931,0.00010986,2]
[339496999,1727634638823,-150.0,0.00010986,2]
[339497000,1727634638832,-150.00000001,0.00010986,2]
[339497001,1727634638841,-29175.0,0.00010986,2]
[339497002,1727634638850,-22205.0,0.00010986,2]
[339497003,1727634638859,-477.113,0.00010987,2]
[339497004,1727634638868,-168.104,0.00010987,2]
[339497005,1727634638877,-151.68,0.00010989,2]
[339497006,1727634638886,-25000.0,0.0001099,2]
[339497007,1727634638896,-153.7,0.0001099,2]
[339497008,1727634638906,-153.7,0.0001099,2]
[339497009,1727634638915,-31037.1897639,0.00010997,2]
[339497010,1727634638924,-3762.8634875,0.00010997,2]
[339497011,1727634638933,-14355.4211927,0.00010997,2]
[339497012,1727634638942,-16359.0163146,0.00010997,2]
[339497013,1727634638951,-9308.02162027,0.00010997,2]
[339497014,1727634638960,-2313.3328406,0.00010997,2]
[339497015,1727634638969,-12112.5430059,0.00010997,2]
[339497016,1727634638979,-150.01,0.00010999,2]
[339497017,1727634638989,-250229.06174392,0.00010999,2]
[339497018,1727634638999,-500.0,0.00010999,2]
[339497019,1727634639008,-500.0,0.00010999,2]
[339497020,1727634639018,-504.0,0.00010999,2]
[339497021,1727634639027,-1904.0,0.00011,2]
[339497022,1727634639036,-554.0,0.00011,2]
[339497023,1727634639045,-807.0,0.00011,2]
[339497024,1727634639055,-3350.0,0.00011,2]
[339497025,1727634639064,-1910.0,0.00011,2]
[339497026,1727634639073,-1081.0,0.00011,2]
[339497027,1727634639083,-150.0,0.00011,2]
[339497028,1727634639092,-1263.0,0.00011,2]
[339497029,1727634639101,-442.649,0.00011,2]
[339497030,1727634639110,-625.0,0.00011,2]
[339497031,1727634639120,-672915.21718495,0.00011,2]
[339497032,1727634639130,-3108148.46562626,0.00011,2]
[339497033,1727634639142,-304.98175715,0.00011,2]
[339497034,1727634639153,-1518.78151077,0.00011,2]
[339497035,1727634639165,-3962.55749776,0.00011,2]
[339497036,1727634639177,-3110.01716113,0.00011,2]
[339497037,1727634639188,-799.5914014,0.00011,2]
[339497038,1727634639214,-592.39242147,0.00011,2]
[339497055,1727634640034,-3749.99670001,0.00011,2]
[339497056,1727634640045,-1132.81782883,0.00011,2]
[339497057,1727634640243,-590.3446827,0.00011,2]
[339497058,1727634640277,-1082.80036005,0.00011,2]
[339497078,1727634643136,-538.23264366,0.00011,2]
[339497079,1727634643174,-292.35005528,0.00011,2]
[339497080,1727634643186,-9001.87014775,0.00011,2]
[339497083,1727634646081,-186.34067264,0.00010958,2]
[339497084,1727634646091,-489.75932737,0.00010958,2]
[339497085,1727634646103,-10.24067263,0.00010958,2]
[339497086,1727634646113,-500.68734814,0.00010958,2]
[339497087,1727634646123,-500.0,0.00010958,2]
[339497088,1727634646133,-500.0,0.00010958,2]
[339497089,1727634646143,-933.0,0.00011,2]
[339497090,1727634646152,-1116.02092163,0.00011,2]
[339497091,1727634646163,-472.15550848,0.00011,2]
[339497092,1727634646175,-69551.6223623,0.00011,2]
[339497093,1727634902658,23900.0,9.89e-05,2]
[339497094,1727634919237,156.39,9.89e-05,2]
[339497095,1727634956379,295.11,8.219e-05,2]
[339497096,1727634986955,174.2,9.808e-05,2]
[339497097,1727635042545,191.55,9.589e-05,2]
[339497098,1727635053943,248.226519,9.944e-05,2]
[339497099,1727635085357,250.0,9.698e-05,2]
[339497100,1727635147407,463.27,9.719e-05,2]
[339497101,1727635242883,150.0,9.991e-05,2]
[339497102,1727635254672,500.0,9.674e-05,2]
[339497103,1727635290997,250.0,9.644e-05,2]
[339497104,1727635293460,532.17,9.644e-05,2]
[339497105,1727635306356,667.47,9.669e-05,2]
[339497106,1727635318261,1466.8,9.669e-05,2]
[339497107,1727635353535,401.09,9.746e-05,2]
[339497108,1727635401863,1000.0,9.665e-05,2]
[339497109,1727635428861,190.32,9.659e-05,2]
[339497112,1727635469282,23900.0,9.686e-05,2]
[339497113,1727635499294,200.0,9.682e-05,2]
[339497114,1727635507665,150.0,9.888e-05,2]
[339497115,1727635511275,150.0,9.888e-05,2]
[339497116,1727635520863,150.0,9.888e-05,2]
[339497117,1727635523734,150.0,9.888e-05,2]
[339497118,1727635532370,150.0,9.888e-05,2]
[339497119,1727635538365,150.0,9.888e-05,2]
[339497120,1727635579460,156.39,9.707e-05,2]
[339497121,1727635588047,173.67,9.707e-05,2]
[339497122,1727635661527,412.24,8.219e-05,2]
[339497123,1727635664217,250.0,9.575e-05,2]
[339497124,1727635708224,191.55,9.589e-05,2]
[339497126,1727635774769,332.8,9.459e-05,2]
[339497134,1727635832209,-737.5985368,9.994e-05,2]
[339497135,1727635832221,-5318.2495632,9.994e-05,2]
[339497136,1727635832231,-700.0,0.0001,3]
[339497137,1727635832240,-1050.0,0.0001,2]
[339497138,1727635832249,-700.25436814,0.0001,2]
[339497139,1727635832261,-152.38035304,0.0001,2]
[339497140,1727635832281,-481.01582459,0.00010094,2]
[339497141,1727635832293,-111.50417541,0.00010094,2]
[339497142,1727635832302,-288.49582459,0.00010094,2]
[339497143,1727635832323,-1255.12,0.00010094,2]
[339497144,1727635832334,-337.34931894,0.00010094,2]
[339497145,1727635832348,-588.74678369,0.00010094,2]
[339497146,1727635832359,-1974.18309637,0.00010094,2]
[339497147,1727635832370,-2248.6741294,0.00010094,2]
[339497148,1727635832382,-750.26546194,0.00010094,2]
[339497149,1727635832392,-1266.60175907,0.00010094,2]
[339497150,1727635832403,-1285.70283055,0.00010094,2]
[339497151,1727635832415,-357.46371413,0.00010094,2]
[339497152,1727635832426,-7323.924979,0.00010094,2]
[339497153,1727635832437,-549.52917014,0.00010094,2]
[339497154,1727635832449,-3952.11216265,0.00010094,2]
[339497155,1727635832460,-10402.4493057,0.00010094,2]
[339497156,1727635832472,-664.57727663,0.00010094,2]
[339497157,1727635832484,-4212.6311127,0.00010094,2]
[339497158,1727635832495,-4363.30841209,0.00010094,2]
[339497159,1727635832508,-562.21440665,0.00010094,2]
[339497161,1727635832519,-2045.75766083,0.00010094,2]
[339497163,1727635832530,-2498.3477175,0.00010094,2]
[339497165,1727635832541,-3072.54487743,0.00010094,2]
[339497167,1727635832550,-300.0,0.00010099,2]
[339497169,1727635832560,-184.98777253,0.000101,3]
[339497171,1727635832571,-1215.01222747,0.000101,3]
[339497172,1727635832583,-1855.65488508,0.00010101,2]
[339497173,1727635832594,-983.93,0.00010101,2]
[339497176,1727635832613,-4387.39945267,0.00010101,2]
[339497178,1727635832623,-150.0,0.00010107,2]
[339497179,1727635832632,-150.0,0.0001011,2]
[339497181,1727635832641,-247.37,0.0001011,2]
[339497183,1727635832650,-286.30208306,0.0001011,2]
[339497185,1727635832663,-167.91791694,0.0001011,2]
[339497187,1727635832672,-601.28,0.0001011,2]
[339497189,1727635832681,-352.22,0.0001011,2]
[339497191,1727635832691,-323.49,0.0001011,2]
[339497193,1727635832699,-1000.0,0.00010124,2]
[339497195,1727635832708,-1431.05,0.00010124,2]
[339497197,1727635832719,-446.14,0.00010124,2]
[339497199,1727635832728,-150.0,0.00010162,2]
[339497201,1727635832736,-499.99,0.00010162,2]
[339497203,1727635832746,-150.0,0.00010164,2]
[339497205,1727635832755,-2200.0,0.000102,3]
[339497211,1727635832979,-11512.0,0.000103,3]
[339497212,1727635832989,-151.49,0.000103,2]
[339497213,1727635832998,-150.99,0.000103,2]
[339497214,1727635833008,-2526.42,0.000103,2]
[339497215,1727635833018,-776.85,0.000103,2]
[339497216,1727635833027,-218.62128649,0.000103,2]
[339497217,1727635833039,-4577.47871351,0.000103,2]
[339497218,1727635833048,-2900.0,0.000103,3]
[339497219,1727635833058,-150.0,0.00010327,2]
[339497220,1727635833067,-3203.7251,0.000104,2]
[339497221,1727635833077,-554.84151726,0.000104,2]
[339497222,1727635833088,-2984.3221489,0.000104,2]
[339497223,1727635833101,-974.32993384,0.000104,2]
[339497224,1727635833110,-150.0,0.000104,2]
[339497225,1727635833120,-150.0,0.000104,2]
[339497226,1727635833130,-1912.37353337,0.000104,3]
[339497227,1727635833142,-277.5783648,0.000104,3]
[339497228,1727635833153,-575.41365747,0.000104,3]
[339497229,1727635833165,-934.63444436,0.000104,3]
[339497230,1727635833174,-150.0,0.00010437,2]
[339497231,1727635833184,-412.24,0.00010453,2]
[339497232,1727635833193,-302.19252608,0.0001047,2]
[339497233,1727635833205,-2813.80747392,0.0001047,2]